Cogmind - Beta 15 @@@ ROGUE MODE // 2025.10.10 @ 14:13:08 Player: microsand Result: System corrupted Performance ------------- Evolutions (0) 0 Regions Visited (1) 200 Robots Destroyed (16) 80 Value Destroyed (271) 271 Prototype IDs (0) 0 Alien Tech Used (0) 0 Bonus (0) 0 TOTAL SCORE: 551 Bonus ------- None Cogmind --------- Core Integrity 0/250 Matter 100/300 Energy 115/125 System Corruption 105% Temperature Cool (0) Movement Walking (190) Ox1 Location -10/Materials Parts ------- > --- POWER (1) -------- Light Ion Engine > --- PROPULSION (2) --- Light Treads Aluminum Leg > --- UTILITY (2) ------ Small Storage Unit > --- WEAPON (2) ------- Small Laser Assault Rifle > --- INVENTORY (8) ---- Light Ion Engine Light Ion Engine Medium Matter Pod (38) Medium Laser Light Assault Rifle EMP Blaster Mining Laser Peak State ------------ > --- POWER ------------ Light Ion Engine > --- PROPULSION ------- Light Treads Light Treads > --- UTILITY ---------- Small Storage Unit Visual Processing Unit > --- WEAPON ----------- EM Pulse Gun EMP Blaster > --- INVENTORY -------- Light Ion Engine Light Ion Engine Medium Matter Pod Medium Laser Assault Rifle Light Assault Rifle Mining Laser [Rating: 9] Favorites ----------- Power Light Ion Engine Engine Light Ion Engine Propulsion Light Treads Treads Light Treads Leg Aluminum Leg Utility Small Storage Unit Device Seismic Detector Storage Small Storage Unit Processor Visual Processing Unit Weapon Assault Rifle Energy Gun Medium Laser Ballistic Gun Assault Rifle Launcher EMP Blaster Special Weapon Mining Laser Build | -11 -10 ------- Run | Yrd Mat Slots Evolved . | . . Power . | . . Propulsion . | . . Utility . | . . Weapon . | . . Parts Attached 27 | 8 19 Power 2 | 1 1 Engine 2 | 1 1 Core . | . . Reactor . | . . Propulsion 4 | 2 2 Treads 2 | 2 . Leg 2 | . 2 Wheel . | . . Hover . | . . Flight . | . . Utility 11 | 2 9 Device 2 | 1 1 Storage 2 | 1 1 Processor 7 | . 7 Hackware . | . . Protection . | . . Artifact . | . . Weapon 10 | 3 7 Energy Gun 3 | 2 1 Energy Cannon . | . . Ballistic Gun 2 | 1 1 Ballistic Cannon . | . . Launcher 4 | . 4 Special Weapon 1 | . 1 Impact Weapon . | . . Slashing Weapon . | . . Piercing Weapon . | . . Special Melee Weapon . | . . Unidentified Prototypes . | . . Corrupted Parts 16 | . 16 System Corruption 105 | . 105 Parts Lost 1 | . 1 Power . | . . Propulsion . | . . Utility . | . . Weapon 1 | . 1 Highest Loss Streak 1 | . 1 To Critical Strikes . | . . Average Backups 3 | 2 4 Power 1 | . 1 Propulsion . | . . Utility . | . . Weapon 2 | 1 2 Tool/Special . | . . Unused Backups 1 | . 1 Power 1 | . 1 Propulsion . | . . Utility . | . . Weapon . | . . Tool/Special . | . . Average Slot Usage (%) 96 | . 96 Engine 14 | . 14 Treads 28 | . 28 Device 9 | . 9 Storage 14 | . 14 Energy Gun 11 | . 11 Ballistic Gun 9 | . 9 Launcher 6 | . 6 Special Weapon 1 | . 1 Peak Build Rating 9 | 7 9 Average Rating 6 | 5 7 On Entrance 3 | . 7 Naked Turns . | . . Heaviest Build 15 | 13 15 Greatest Support 40 | 40 40 Greatest Overweight (x) 3 | . 3 Average Overweight (x) . | . . Largest Inventory Capacity 8 | 8 8 Average Capacity 7 | 7 8 Most Carried 8 | 4 8 Average Carried 4 | 2 4 Final Capacity 8 | 8 8 Final Carried 7 | 3 7 Class Distribution -------------------- 100% | Mutant Dominant Class ---------------- Mutant | -10/Materials Resources | -11 -10 ----------- Run | Yrd Mat Matter Collected 395 | 298 97 Remotely . | . . Salvage Created 610 | 105 505 Parts 34 | 6 28 Haulers Intercepted . | . . Recyclers Shooed 4 | 1 3 Parts Field Recycled . | . . Retrieved Matter . | . . Parts Self-Destructed . | . . Prevented . | . . Kills | -11 -10 ------- Run | Yrd Mat Combat Hostiles Destroyed 8 | . 8 Guns 3 | . 3 AOE 5 | . 5 Classes Destroyed 6 | 2 4 Worker 2 | . 2 Builder 2 | . 2 Tunneler 2 | 2 . Recycler 2 | 1 1 Swarmer 3 | . 3 Grunt 5 | . 5 Best Kill Streak 3 | 3 3 Combat Bots Only 3 | . 3 Max Kills in Single Turn 3 | 2 3 Gunslinging . | . . Exploded 1 | . 1 Melee . | . . Uniques/NPCs Destroyed . | . . Combat | -11 -10 -------- Run | Yrd Mat Hostile Shots Fired 47 | . 47 Missed 23 | . 23 Hits 24 | . 24 Projectile 24 | . 24 Damage Taken 333 | . 333 Core 52 | . 52 Absorbed by Shields . | . . Core Remaining (%) 100 | 100 . Volleys Fired 40 | 6 34 Largest 2 | 2 2 Hottest 100 | 70 100 Shots Fired 67 | 12 55 Gun 51 | 12 39 Cannon . | . . Launcher 14 | . 14 Special 2 | . 2 Kinetic 21 | 6 15 Thermal 10 | 6 4 Explosive . | . . Electromagnetic 36 | . 36 Robot Hit Streak 8 | 8 5 Robot Miss Streak 4 | 1 4 Penetration Max . | . . Secondary Targets . | . . Shots Hit Robots 36 | 9 27 Core Hits 22 | 4 18 Critical Kills . | . . Critical Parts Destroyed . | . . Critical Strikes 1 | 1 . Burn 1 | 1 . Melee Attacks . | . . Impact . | . . Slashing . | . . Piercing . | . . Sneak Attacks . | . . Combat Hostiles . | . . Follow-up Attacks . | . . Damage Inflicted 872 | 125 747 Guns 382 | 125 257 Cannons . | . . Explosions 490 | . 490 Melee . | . . Ramming . | . . Kinetic 123 | 49 74 Thermal 149 | 76 73 Explosive . | . . Electromagnetic 600 | . 600 Impact . | . . Slashing . | . . Piercing . | . . Highest Corruption 105 | . 105 Average Corruption 52 | . 52 Corruption Purged . | . . Corruption Blocked . | . . Effects 11 | . 11 Message Errors 3 | . 3 Heat Flow Errors 1 | . 1 Data Loss (minor) 1 | . 1 Data Loss (major) 1 | . 1 Misfires 1 | . 1 Misdirections 1 | . 1 Weapon Failures 3 | . 3 Overload Shots . | . . Overflow Damage . | . . Projectiles . | . . Explosions . | . . Melee . | . . Knockbacks . | . . Impact . | . . Kinetic . | . . Secondary . | . . Self-Inflicted Damage 47 | . 47 Shots 2 | . 2 Rammed . | . . Targets Rammed . | . . Kicked . | . . Crushed . | . . Highest Temperature 208 | 54 208 Average Temperature 27 | 28 27 Received Heat Transfer 129 | . 129 Siege Activations . | . . Martial Activations . | . . Shielding Activations . | . . Robots Disrupted . | . . Combat Hostiles . | . . Robots Corrupted . | . . Combat Hostiles . | . . Parts Fried 2 | . 2 Impact Corruptions . | . . Robots Melted . | . . Combat Hostiles . | . . Parts Melted . | . . Heat Transferred 346 | 296 50 Parts Sabotaged . | . . Parts Stolen . | . . Parts Stripped . | . . Power Chain Reactions 4 | . 4 Alert | -11 -10 ------- Run | Yrd Mat Maximum Alert Level . | . . Low Security (%) 100 | 100 100 Level 1 . | . . Level 2 . | . . Level 3 . | . . Level 4 . | . . Level 5 . | . . High Security . | . . Max Security . | . . Peak Influence 127 | 10 127 Initial . | . . Average 35 | . 46 Influence Increases 286 | 15 271 Destroy 0b10 Robot/C 160 | . 160 Destroy 0b10 Robot/NC 40 | 15 25 Destroy Leader 40 | . 40 Successful Hack 10 | . 10 Disable Machine 30 | . 30 Destroy Structure 6 | . 6 Influence Decreases 167 | 15 152 Time Decay 157 | 15 142 Lost Part 10 | . 10 Squads Dispatched 3 | . 3 Investigation 1 | . 1 Extermination . | . . Reinforcement 2 | . 2 Assault . | . . Garrison . | . . Intercept . | . . Searches Triggered . | . . Construction Impeded . | . . Haulers Reinforced . | . . Active Scanning Responses . | . . Cargo Convoy Interrupts . | . . Stealth | -11 -10 --------- Run | Yrd Mat Distress Signals 1 | . 1 Communications Jammed . | . . Distress Signals . | . . Times Spotted 13 | . 13 Peak Tracking Total 3 | . 3 Tactical Retreats . | . . Traps | -11 -10 ------- Run | Yrd Mat Traps Triggered . | . . Indirectly . | . . Trap Hack Attempts . | . . Triggered . | . . Disarmed . | . . Reprogrammed . | . . Reused . | . . Traps Extracted . | . . Installed . | . . Triggered . | . . Machines | -11 -10 ---------- Run | Yrd Mat Machines Disabled 2 | . 2 Max in Single Turn 1 | . 1 Machines Repaired . | . . Machines Dismantled . | . . Machines Sabotaged . | . . Overloaded Fab Kills . | . . Hacking | -11 -10 --------- Run | Yrd Mat Machines Accessed 3 | . 3 Terminals 3 | . 3 Fabricators . | . . Repair Stations . | . . Recycling Units . | . . Scanalyzers . | . . Garrison Access . | . . Total Hacks 7 | . 7 Successful 5 | . 5 Failed 2 | . 2 Catastrophic . | . . Database Lockouts . | . . Manual 7 | . 7 Terminals 7 | . 7 Fabricators . | . . Repair Stations . | . . Recycling Units . | . . Scanalyzers . | . . Garrison Access . | . . Terminal Hacks 3 | . 3 Branch Access Points 1 | . 1 Terminal Index 1 | . 1 Unreport Threat 1 | . 1 Fabricator Hacks . | . . Repair Station Hacks . | . . Recycling Unit Hacks . | . . Scanalyzer . | . . Garrison Access Hacks . | . . Unauthorized Hacks 2 | . 2 Terminals 2 | . 2 Botnet 2 | . 2 Fabricators . | . . Repair Stations . | . . Recycling Units . | . . Scanalyzers . | . . Garrison Access . | . . Data Cores Recovered . | . . Used . | . . Hacking Detections 3 | . 3 Full Trace Events . | . . Feedback Events . | . . Feedback Blocked . | . . Robot Schematics Acquired . | . . Robots Built . | . . Authchips . | . . Time . | . . Total Robot Build Rating . | . . Part Schematics Acquired . | . . Parts Built . | . . Authchips . | . . Time . | . . Total Part Build Rating . | . . Parts Repaired . | . . Time . | . . Parts Recycled . | . . Recycled Matter . | . . Retrieved Matter . | . . Retrieved Components . | . . Parts Scanalyzed . | . . Part Schematics Acquired . | . . Parts Damaged . | . . Bothacking | -11 -10 ------------ Run | Yrd Mat Used RIF Installer . | . . Robots Hacked . | . . Non-combat . | . . Combat . | . . Robot Hacks Applied . | . . Relay Couplers Released . | . . Fabnet Peak Effective % . | . . Robots Rewired . | . . Allies Hacked . | . . Hacks Repelled . | . . Allies | -11 -10 -------- Run | Yrd Mat Total Allies . | . . Largest Group . | . . Highest-Rated Group . | . . Highest-Rated Ally . | . . Total Orders . | . . Ally Attacks . | . . Total Damage . | . . Kills . | . . Allies Corrupted . | . . Allies Melted . | . . Intel | -11 -10 ------- Run | Yrd Mat Active Infowar (turns) 432 | 69 363 Optics 19 | . 19 Seismic 413 | 69 344 Robot Analysis Total . | . . Derelict Logs Recovered . | . . Drone Launches . | . . Drone Recoveries . | . . Exploration | -11 -10 ------------- Run | Yrd Mat Turns Passed 665 | 166 499 Spaces Moved 302 | 97 205 Core 23 | 22 1 Treads 279 | 75 204 Legs . | . . Wheels . | . . Hover . | . . Flight . | . . Fastest Speed 50 | 50 160 Average Speed 152 | 135 160 Slowest Speed 200 | 160 200 Overloaded Moves . | . . Propulsion Burnouts . | . . Robots Hopped . | . . Potential Cave-ins . | . . Cave-ins Triggered . | . . Exploration Rate (%) 17 | 4 30 Regions Visited 1 Branch Regions . Pre-discovered Areas . | . . Known Exits Taken . | . . Unknown Exits Taken 1 | 1 . Scrap Searched . | . . Spaces Dug 2 | . 2 Terrain Destroyed 6 | . 6 Melee . | . . Projectile 2 | . 2 AOE 4 | . 4 Terrain Rammed . | . . Walls Destroyed . | . . Machines Disabled . | . . Actions | -11 -10 --------- Run | Yrd Mat Total 441 | 121 320 Wait 20 | . 20 Move 301 | 96 205 Hop . | . . Pick Up 29 | 10 19 Fast Attach . | . . Attach 21 | 8 13 Detach 4 | 1 3 Swap 12 | . 12 Drop 14 | . 14 Fire 40 | 6 34 Melee . | . . Ram . | . . Kick . | . . Crush . | . . Escape Stasis . | . . Rewire . | . . Trap . | . . Miscellaneous . | . . Route ------- -11/Scrapyard -10/Materials (discovered 2 exits: *Min x2) History --------- Turn | Location | Event 3 | -11/Scrapyard | Discovered new exit (range 16) 167 | -11/Scrapyard | Entered Materials 207 | -10/Materials | Identified exit to Mines 318 | -10/Materials | Build established: Mutant 533 | -10/Materials | System corruption reached 10% 546 | -10/Materials | System corruption reached 30% 667 | -10/Materials | System corrupted Last Messages --------------- 00652_ Dropped Heat Sink. 00653_ U-05 Engineer lays Concrete. 00654_ Acquired Corrupted Sml. Laser. 00655_ CO:N2SDXBLFR4YFN 00660_ Acquired Corrupted Aluminum Leg. 00660_ U-05 Engineer lays Concrete. 00661_ Integrated Corrupted Aluminum Leg (+6). 00661_ U-05 Engineer lays Concrete. 00662_ Dropped Aluminum Leg. 00662_ U-05 Engineer lays Concrete. 00665_ Dropped Lgt. Treads. 00665_ Acquired Corrupted Aluminum Leg. 00666_ U-05 Engineer lays Concrete. 00666_ Integrated Corrupted Aluminum Leg (+8). 00667_ Cogmind system terminally corrupted. Map ----- +----------------------------------------------------+ | ????????????????????????????# """ #?????# + T | | ????????????????????????????# ####### # | | ????????????????????????????# """ # # # | | ???????????????????????????## """ # # # | | ???????????????????????????## """ # |# # | | ???????????????????????????## # # ###### | | ????????????#? ?????????????# [ # # #????? | | ????????????# ??????###### = * # + #????? | | ????????????# ??????# ####+### # #????? | | ????????????# > ??????# # # #????? | | ????????????# ??????# % # # #?#### | | ????????????# ??????# # # #? | | ????????????# ??????# # # # | | ?????????????# ??????#t # # # """ | | ?????????????# ####### ####### + """ | | ?????????????# #?????# # """ | | ?????????????# #?????# # | | ????????????## | " """ #????## ###### | | ????????????# !%= " """ ###### #???? | | ????????????# * " """ #???? | | ??????[ + T #???? | | ??????[ # #???? | | ????????????# ############ #???? | | ????????????# ####### ! ####???????#######???? | | ????????????# # ] #=% #?????????????????? | | ????????????# ?# /=@ #?????????????????? | | ????????????# ?# # u #?????????????????? | | ??????????? ??# ""# %t%=] #?????????????????? | | ??????????#####??# Y"#! =] #?????????????????? | | ?????????????????# ""# %%=] #?????????????????? | | ?????????????????# # ;;;##?????????????????? | | ?????????????????####### ####??????????????????? | | ???????????????????????# #?????????????????????? | | ???????????????????????# #?????????????????????? | | ???????????????????????# #?????????????????????? | | ???????????????????????# #?????????????????????? | | ???????????????????????# g#?????????????????????? | | ???????????????????????# #?????????????????????? | | ???????????????????????# #?????????????????????? | | ??????????????????????? og ?????????????????????? | | ??????????????????????? ??????????????????????? | | ??????????????????????? ??????????????????????? | | ?????????????????????????????????????????????????? | | ?????????????????????????????????????????????????? | | ?????????????????????????????????????????????????? | | ?????????????????????????????????????????????????? | | ?????????????????????????????????????????????????? | | | | | | | +----------------------------------------------------+ Best States ------------- Heat Dissipation 25 Energy Generation 10 Energy Capacity 125 Matter Stores 300 Matter Capacity 300 Sight Range 18 Terrain Scan Density 10 Evasion (%) 40 Recoil Reduction 2 Item Schematics ----------------- None Robot Schematics ------------------ None Fabricated ------------ Nothing Repaired ---------- Nothing Alien Tech Used ----------------- None Achievements -------------- Z1$+NX3F=JRE3_ZNQR Challenges ------------ None Game ------ Seed CatalystRingShell Manual? 0 Play Time 00:10:56 Cumulative 14.0 hours Start 2025.10.10 @ 14:04:42 End 2025.10.10 @ 14:13:08 Sessions 1 Manual Loads 0 Difficulty Rogue Special Mode None Game No. 44 Rogue 44 Adventurer 0 Explorer 0 Win Type - Total 0 Types 0/0/0/0/0/0/0/0/0/0 Lore% 23 Gallery% 19 Achievement% 21 Wizard Run 0 Options --------- Layout 1 ASCII 0 Keyboard 0 Movement Numpad Keybinds 0 Fullscreen 1 Font 24/Smallcaps Map View 50x35 Zoom Use 0% Tactical HUD 1 Map Filters NONE Filters NONE Steam 1 RUN: f6faacc4-3baf-4a17-a928-d255ce368559